Cogmind - Beta 11.1 @@@ ROGUE MODE // 2022.05.11 @ 10:39:06 Player: Olga Result: Self-destructed Performance ------------- Evolutions (3) 1500 Regions Visited (4) 800 Robots Destroyed (76) 380 Value Destroyed (2543) 2543 Prototype IDs (1) 20 Alien Tech Used (0) 0 Bonus (78) 78 TOTAL SCORE: 5321 Bonus ------- High Alert Combat Kills 78 Cogmind --------- Core Integrity 488/700 Matter 300/300 Energy 310/310 System Corruption 2% Temperature Warm (198) Movement Core (1900) Ox37 Location -7/Factory Parts ------- > --- POWER (1) -------- Heavy Deuterium Engine > --- PROPULSION (4) --- (None) > --- UTILITY (6) ------ Huge Storage Unit Visual Processing Unit Transport Network Coupler Improved Medium Armor Plating > --- WEAPON (2) ------- Heavy Ion Cannon Heavy Ion Cannon > --- INVENTORY (25) --- Improved Deuterium Engine Improved Deuterium Engine Heavy Deuterium Engine Improved Heat Sink Improved Cooling System Huge Storage Unit Improved Sensor Array Improved Signal Interpreter Advanced Terrain Scan Processor Energy Filter Particle Charger Improved Weapon Cycler Improved Weapon Cycler Improved Medium Armor Plating Shield Generator Improved Shield Generator Hacking Suite Improved EM Pulse Cannon Improved EM Pulse Cannon Plasma Cannon Plasma Cannon Plasma Cannon Heavy Ion Cannon Heavy Ion Cannon Rocket Launcher Peak State ------------ > --- POWER ------------ Improved Deuterium Engine > --- PROPULSION ------- Light Treads Light Treads Light Treads Advanced Treads > --- UTILITY ---------- Advanced Heat Sink Huge Storage Unit Visual Processing Unit Energy Filter Hardened Medium Armor Plating Hardlight Generator > --- WEAPON ----------- Heavy Ion Cannon Heavy Ion Cannon > --- INVENTORY -------- Improved Deuterium Engine Improved Deuterium Engine Improved Deuterium Engine Heavy Deuterium Engine Heavy Deuterium Engine Light Treads Advanced Treads Improved Cooling System Improved Cooling System Improved Sensor Array Improved Signal Interpreter Improved Terrain Scan Processor Transport Network Coupler Particle Charger Improved Weapon Cycler Improved Weapon Cycler Hardened Medium Armor Plating Improved Medium Armor Plating Shield Generator Hacking Suite Improved EM Pulse Cannon Improved EM Pulse Cannon Plasma Cannon Heavy Ion Cannon Heavy Ion Cannon [Rating: 45] Favorites ----------- Power Improved Deuterium Engine Engine Improved Deuterium Engine Propulsion Light Treads Treads Light Treads Leg Aluminum Leg Utility Huge Storage Unit Device Advanced Heat Sink Storage Huge Storage Unit Processor Visual Processing Unit Protection Hardened Medium Armor Plating Weapon Heavy Ion Cannon Energy Cannon Heavy Ion Cannon Ballistic Gun Gauss Rifle Build | -11 -10 -9 -8 -7 ------- Run | Scr Mat Mat Mat Fac Slots Evolved 6 | . . 2 2 2 Power . | . . . . . Propulsion 2 | . . 1 1 . Utility 4 | . . 1 1 2 Weapon . | . . . . . Parts Attached 60 | 2 2 14 17 25 Power 3 | . . 1 1 1 Engine 3 | . . 1 1 1 Core . | . . . . . Reactor . | . . . . . Propulsion 20 | 2 . 5 6 7 Treads 20 | 2 . 5 6 7 Leg . | . . . . . Wheel . | . . . . . Hover . | . . . . . Flight . | . . . . . Utility 24 | . 2 3 6 13 Device 9 | . . 1 1 7 Storage 2 | . 1 . . 1 Processor 5 | . 1 1 1 2 Hackware . | . . . . . Protection 8 | . . 1 4 3 Artifact . | . . . . . Weapon 13 | . . 5 4 4 Energy Gun . | . . . . . Energy Cannon 4 | . . . . 4 Ballistic Gun 9 | . . 5 4 . Ballistic Cannon . | . . . . . Launcher . | . . . . . Special Weapon . | . . . . . Impact Weapon . | . . . . . Slashing Weapon . | . . . . . Piercing Weapon . | . . . . . Special Melee Weapon . | . . . . . Unidentified Prototypes 1 | . . . . 1 Parts Lost 22 | . . 2 3 17 Power . | . . . . . Propulsion 11 | . . . 2 9 Utility 8 | . . . 1 7 Weapon 3 | . . 2 . 1 Highest Loss Streak 4 | . . 1 1 4 To Critical Strikes . | . . . . . Average Slot Usage (%) 95 | . 94 99 99 92 Engine 8 | . 14 11 9 7 Treads 29 | . 28 32 35 25 Device 7 | . . 4 . 14 Storage 8 | . 14 11 9 7 Processor 14 | . 8 11 18 13 Protection 6 | . . 6 8 6 Energy Cannon 6 | . . . . 13 Ballistic Gun 11 | . 28 21 17 1 Naked Turns . | . . . . . Heaviest Build 123 | 13 88 100 106 123 Greatest Support 84 | 40 40 60 82 84 Greatest Overweight (x) 5 | . 2 1 1 5 Average Overweight (x) 1 | . . 1 1 1 Largest Inventory Capacity 25 | 8 25 25 25 25 Average Capacity 24 | 8 14 25 25 25 Most Carried 25 | 6 12 25 25 25 Average Carried 22 | 6 8 21 24 24 Final Capacity 25 | 8 25 25 25 25 Final Carried 25 | 6 12 25 24 25 Class Distribution -------------------- 59% | Mutant 40% | Scavenger-Mutant Dominant Class ---------------- Mutant | -10/Materials Scavenger-Mutant | -9/Materials Mutant | -8/Materials Scavenger-Mutant | -7/Factory Resources | -11 -10 -9 -8 -7 ----------- Run | Scr Mat Mat Mat Fac Matter Collected 1779 | 184 116 348 828 303 Remotely . | . . . . . Salvage Created 3077 | . 251 456 974 1396 Parts 170 | . 15 28 64 63 Haulers Intercepted 5 | . 1 1 1 2 Recyclers Shooed 2 | . . . 2 . Parts Field Recycled . | . . . . . Retrieved Matter . | . . . . . Parts Self-Destructed . | . . . . . Prevented . | . . . . . Kills | -11 -10 -9 -8 -7 ------- Run | Scr Mat Mat Mat Fac Combat Hostiles Destroyed 57 | . 4 13 18 22 Guns 36 | . 4 13 18 1 Cannons 19 | . . . . 19 AOE 1 | . . . . 1 Classes Destroyed 13 | . 3 5 2 3 Worker 3 | . . . 1 2 Builder 5 | . . 1 2 2 Hauler 5 | . 1 1 1 2 Recycler 1 | . . . . 1 Mechanic 1 | . . . . 1 Operator 2 | . . 1 . 1 Watcher 2 | . 1 . 1 . Swarmer 10 | . . 6 4 . Grunt 33 | . 4 4 11 14 Brawler 1 | . . 1 . . Sentry 6 | . . 2 2 2 Hunter 1 | . . . 1 . Programmer 6 | . . . . 6 Best Kill Streak 5 | . 2 5 4 4 Combat Bots Only 5 | . 2 5 4 4 Max Kills in Single Turn 2 | . 1 1 2 2 Gunslinging . | . . . . . Exploded 1 | . . . . 1 Melee . | . . . . . Uniques/NPCs Destroyed . | . . . . . Combat | -11 -10 -9 -8 -7 -------- Run | Scr Mat Mat Mat Fac Damage Taken 4699 | . 145 806 1239 2509 Core 502 | . 51 107 132 212 Absorbed by Shields 220 | . . . . 220 Regen/Repaired (Parts) 181 | . . 181 . . Core Remaining (%) 82 | 100 79 73 76 . Volleys Fired 249 | . 20 57 81 91 Largest 2 | . 2 2 2 2 Hottest 130 | . 40 50 56 130 Shots Fired 490 | . 40 107 162 181 Gun 327 | . 40 107 162 18 Cannon 163 | . . . . 163 Launcher . | . . . . . Special . | . . . . . Kinetic 327 | . 40 107 162 18 Thermal 163 | . . . . 163 Explosive . | . . . . . Electromagnetic . | . . . . . Robot Hit Streak 13 | . 9 11 11 13 Robot Miss Streak 6 | . 3 5 6 4 Penetration Max 1 | . . . 1 . Secondary Targets 7 | . . 3 4 . Max Gunslinging Chain 1 | . . 1 1 . Shots Hit Robots 305 | . 27 72 95 111 Core Hits 127 | . 12 25 41 49 Critical Kills 6 | . . . 4 2 Critical Parts Destroyed 7 | . 1 . 6 . Critical Strikes 14 | . 1 . 11 2 Meltdown 1 | . . . . 1 Destroy 13 | . 1 . 11 1 Melee Attacks . | . . . . . Impact . | . . . . . Slashing . | . . . . . Piercing . | . . . . . Sneak Attacks . | . . . . . Combat Hostiles . | . . . . . Follow-up Attacks . | . . . . . Damage Inflicted 6758 | . 273 1048 2016 3421 Guns 3437 | . 273 899 2016 249 Cannons 3015 | . . . . 3015 Explosions 306 | . . 149 . 157 Melee . | . . . . . Ramming . | . . . . . Kinetic 3437 | . 273 899 2016 249 Thermal 3172 | . . . . 3172 Explosive 149 | . . 149 . . Electromagnetic . | . . . . . Impact . | . . . . . Slashing . | . . . . . Piercing . | . . . . . Highest Corruption 7 | . . . . 7 Average Corruption 4 | . . . . 4 Corruption Purged 5 | . . . . 5 Corruption Blocked . | . . . . . Effects 54 | . . . . 54 Message Errors 18 | . . . . 18 Matter Fused 6 | . . . . 6 Heat Flow Errors 5 | . . . . 5 Energy Discharges 6 | . . . . 6 Parts Rejected 1 | . . . . 1 Data Loss (minor) 10 | . . . . 10 Data Loss (major) 2 | . . . . 2 Misfires 2 | . . . . 2 Alerts 1 | . . . . 1 Weapon Failures 3 | . . . . 3 Overload Shots . | . . . . . Overflow Damage 213 | . . . . 213 Projectiles 47 | . . . . 47 Explosions 166 | . . . . 166 Melee . | . . . . . Knockbacks . | . . . . . Impact . | . . . . . Kinetic . | . . . . . Secondary . | . . . . . Self-Inflicted Damage 226 | . . 51 . 175 Shots 3 | . . 1 . 2 Rammed . | . . . . . Targets Rammed . | . . . . . Kicked . | . . . . . Crushed . | . . . . . Highest Temperature 382 | . 9 35 118 382 Average Temperature 58 | . 6 10 34 101 Received Heat Transfer 1721 | . 78 225 612 806 Effects 4 | . . . . 4 Energy Bleed 3 | . . . . 3 Damage (minor) 1 | . . . . 1 Siege Activations . | . . . . . Robots Corrupted . | . . . . . Combat Hostiles . | . . . . . Parts Fried . | . . . . . Impact Corruptions . | . . . . . Robots Melted 1 | . . . . 1 Combat Hostiles 1 | . . . . 1 Parts Melted 13 | . . . . 13 Heat Transferred 3985 | . . . . 3985 Parts Sabotaged . | . . . . . Parts Stolen . | . . . . . Parts Stripped . | . . . . . Power Chain Reactions . | . . . . . Missiles Intercepted . | . . . . . Alert | -11 -10 -9 -8 -7 ------- Run | Scr Mat Mat Mat Fac Peak Influence 560 | . 123 253 560 367 Initial 196 | . . 18 88 196 Average 196 | . 72 93 347 167 Maximum Alert Level 2 | . . 1 2 1 Low Security (%) 52 | 100 100 93 9 53 Level 1 40 | . . 6 63 46 Level 2 7 | . . . 26 . Level 3 . | . . . . . Level 4 . | . . . . . Level 5 . | . . . . . High Security . | . . . . . Max Security . | . . . . . Squads Dispatched 16 | . 2 1 5 8 Investigation 3 | . 1 . 1 1 Extermination 4 | . . . . 4 Reinforcement 8 | . 1 1 3 3 Assault . | . . . . . Garrison 1 | . . . 1 . Intercept . | . . . . . Searches Triggered . | . . . . . Construction Impeded 3 | . . . 2 1 Haulers Reinforced 1 | . . . . 1 Active Scanning Responses . | . . . . . Cargo Convoy Interrupts . | . . . . . Stealth | -11 -10 -9 -8 -7 --------- Run | Scr Mat Mat Mat Fac Distress Signals 6 | . 1 2 2 1 Communications Jammed . | . . . . . Distress Signals . | . . . . . Times Spotted 102 | . 8 20 38 36 Peak Tracking Total 6 | . 2 5 6 5 Tactical Retreats 12 | . 1 . 10 1 Traps | -11 -10 -9 -8 -7 ------- Run | Scr Mat Mat Mat Fac Traps Triggered 3 | . 1 . 1 1 Indirectly . | . . . . . Trap Hack Attempts . | . . . . . Triggered . | . . . . . Disarmed . | . . . . . Reprogrammed . | . . . . . Reused . | . . . . . Traps Extracted . | . . . . . Installed . | . . . . . Triggered . | . . . . . Machines | -11 -10 -9 -8 -7 ---------- Run | Scr Mat Mat Mat Fac Machines Disabled 8 | . . 3 1 4 Max in Single Turn 3 | . . 2 1 3 Garrison Access 1 | . . . 1 . Machines Sabotaged . | . . . . . Garrisons Compromised . | . . . . . Overloaded Fab Kills . | . . . . . Hacking | -11 -10 -9 -8 -7 --------- Run | Scr Mat Mat Mat Fac Machines Accessed 12 | . 2 3 5 2 Terminals 5 | . 2 1 2 . Fabricators 2 | . . . . 2 Repair Stations 2 | . . 1 1 . Recycling Units 2 | . . 1 1 . Scanalyzers . | . . . . . Garrison Access 1 | . . . 1 . Total Hacks 33 | . 5 11 13 4 Successful 19 | . 4 7 6 2 Failed 14 | . 1 4 7 2 Catastrophic 1 | . 1 . . . Database Lockouts . | . . . . . Manual 16 | . 5 3 8 . Terminals 15 | . 5 3 7 . Fabricators 4 | . . . . 4 Repair Stations 7 | . . 6 1 . Recycling Units 4 | . . 2 2 . Scanalyzers . | . . . . . Garrison Access 3 | . . . 3 . Terminal Hacks 3 | . 2 . 1 . Terminal Index 1 | . 1 . . . Repair Station Index 1 | . . . 1 . Recall Investigation 1 | . 1 . . . Fabricator Hacks 2 | . . . . 2 Build 2 | . . . . 2 Repair Station Hacks 7 | . . 6 1 . Scan Component 4 | . . 3 1 . Repair 3 | . . 3 . . Recycling Unit Hacks 1 | . . . 1 . Retrieve Components 1 | . . . 1 . Scanalyzer . | . . . . . Garrison Access Hacks . | . . . . . Unauthorized Hacks 6 | . 2 1 3 . Terminals 5 | . 2 1 2 . Track 1 | . 1 . . . Botnet 4 | . 1 1 2 . Fabricators . | . . . . . Repair Stations . | . . . . . Recycling Units . | . . . . . Scanalyzers . | . . . . . Garrison Access 1 | . . . 1 . Jam 1 | . . . 1 . Data Cores Recovered 2 | . . 1 . 1 Used . | . . . . . Hacking Detections 11 | . 2 3 4 2 Full Trace Events 2 | . . 1 . 1 Feedback Events 1 | . . . . 1 Corruption 1 | . . . . 1 Feedback Blocked . | . . . . . Robot Schematics Acquired . | . . . . . Robots Built 1 | . . . . 1 Authchips . | . . . . . Time 58 | . . . . 58 Total Robot Build Rating 3 | . . . . 3 Part Schematics Acquired . | . . . . . Parts Built 2 | . . . . 2 Authchips . | . . . . . Time 106 | . . . . 106 Total Part Build Rating 12 | . . . . 12 Parts Repaired 3 | . . 3 . . Time 78 | . . 78 . . Parts Recycled . | . . . . . Recycled Matter . | . . . . . Retrieved Matter . | . . . . . Retrieved Components 2 | . . . 2 . Parts Scanalyzed . | . . . . . Part Schematics Acquired . | . . . . . Parts Damaged . | . . . . . Bothacking | -11 -10 -9 -8 -7 ------------ Run | Scr Mat Mat Mat Fac Used RIF Installer . | . . . . . Robots Hacked . | . . . . . Non-combat . | . . . . . Combat . | . . . . . Robot Hacks Applied . | . . . . . Relay Couplers Released 4 | . . . . 4 Programmers 4 | . . . . 4 Fabnet Peak Effective % . | . . . . . Robots Rewired . | . . . . . Allies Hacked . | . . . . . Hacks Repelled . | . . . . . Allies | -11 -10 -9 -8 -7 -------- Run | Scr Mat Mat Mat Fac Total Allies 1 | . . . . 1 Largest Group 1 | . . . . 1 Highest-Rated Group 26 | . . . . 26 Highest-Rated Ally 26 | . . . . 26 Total Orders . | . . . . . Ally Attacks . | . . . . . Total Damage . | . . . . . Kills . | . . . . . Allies Corrupted . | . . . . . Allies Melted . | . . . . . Intel | -11 -10 -9 -8 -7 ------- Run | Scr Mat Mat Mat Fac Robot Analysis Total . | . . . . . Derelict Logs Recovered . | . . . . . Drone Launches . | . . . . . Drone Recoveries . | . . . . . Exploration | -11 -10 -9 -8 -7 ------------- Run | Scr Mat Mat Mat Fac Turns Passed 6182 | 7 493 1094 1720 2868 Spaces Moved 2083 | 3 209 335 590 946 Core . | . . . . . Treads 2083 | 3 209 335 590 946 Legs . | . . . . . Wheels . | . . . . . Hover . | . . . . . Flight . | . . . . . Fastest Speed 160 | 160 160 240 235 232 Average Speed 245 | 160 201 240 239 260 Slowest Speed 560 | 160 320 240 240 560 Overloaded Moves . | . . . . . Propulsion Burnouts . | . . . . . Robots Hopped . | . . . . . Cave-ins Triggered . | . . . . . Exploration Rate (%) 23 | 2 27 26 39 25 Regions Visited 4 Branch Regions . Pre-discovered Areas . | . . . . . Known Exits Taken 1 | . 1 . . . Unknown Exits Taken 3 | 1 . 1 1 . Scrap Searched . | . . . . . Spaces Dug 4 | . . . . 4 Terrain Destroyed 132 | . . 30 1 101 Melee . | . . . . . Projectile 30 | . . . 1 29 AOE 102 | . . 30 . 72 Terrain Rammed . | . . . . . Walls Destroyed . | . . . . . Machines Disabled . | . . . . . Actions | -11 -10 -9 -8 -7 --------- Run | Scr Mat Mat Mat Fac Total 2737 | 4 251 534 772 1176 Wait 195 | . 8 95 31 61 Move 2079 | 2 208 334 589 946 Hop . | . . . . . Pick Up 87 | . 9 22 25 31 Fast Attach 12 | . 1 4 3 4 Attach 21 | . . 3 5 13 Detach . | . . . . . Swap 27 | 2 1 7 9 8 Drop 67 | . 4 12 29 22 Fire 249 | . 20 57 81 91 Melee . | . . . . . Ram . | . . . . . Kick . | . . . . . Crush . | . . . . . Escape Stasis . | . . . . . Rewire . | . . . . . Trap . | . . . . . Miscellaneous . | . . . . . Route ------- -11/Scrapyard -10/Materials -9/Materials (discovered 2 exits: *Mat / [*Min]) -8/Materials (discovered 2 exits: *Fac / [*Sto]) -7/Factory History --------- Turn | Location | Event 4 | -11/Scrapyard | Discovered new exit (range 3) 8 | -11/Scrapyard | Entered Materials 308 | -10/Materials | Build established: Mutant 452 | -10/Materials | Discovered new exit (range 9) 498 | -10/Materials | Identified exit to Materials 501 | -10/Materials | Entered another Materials area 501 | -9/Materials | Evolved 2 slots: Propulsion x1, Utility x1 992 | -9/Materials | Build established: Scavenger-Mutant 1036 | -9/Materials | Repaired Lgt. Treads 1063 | -9/Materials | Repaired Lgt. Treads 1091 | -9/Materials | Repaired Lgt. Treads 1298 | -9/Materials | Discovered new exit (range 10) 1450 | -9/Materials | Discovered new exit (range 8) 1595 | -9/Materials | Entered another Materials area 1595 | -8/Materials | Evolved 2 slots: Propulsion x1, Utility x1 1741 | -8/Materials | Garrison activated, responded to threat 2203 | -8/Materials | Build established: Mutant 2983 | -8/Materials | Discovered new exit (range 7) 3267 | -8/Materials | Discovered new exit (range 16) 3315 | -8/Materials | Entered Factory 3315 | -7/Factory | Evolved 2 slots: Utility x2 3441 | -7/Factory | Lost 4 parts (3n1u) 3745 | -7/Factory | Build established: Scavenger-Mutant 3962 | -7/Factory | Fabricated O-24 Administrator? 4323 | -7/Factory | Fabricated Imp. Weapon Cycler (x2) 5401 | -7/Factory | Build established: Mutant 6183 | -7/Factory | Self-destructed Last Messages --------------- 05904_ K-01 Serf collects debris. 05908_ U-05 Engineer builds a Door. 05916_ Acquired 13 matter. 05986_ ZZNIMGQ> E=2LBLNE8OINO:SW 05994_ K-01 Serf cleans the Fabricator. 06017_ Connecting with Fabricator... 06021_ K-01 Serf cleans the Fabricator. 06046_ W T2 KB:F 8NE YG L7IBEBTZC/& 06065_ ALERT: Rogue bot located, Programmers report to Factory Zone 3U. 06066_ System corrupted: Heat flow error (+137). 06088_ System corrupted: Energy discharge (-80). 06163_ Lgt. Treads destroyed. 06172_ Imp. Cooling System destroyed. 06174_ Destroyed Remote Datajack. 06177_ Destroyed Gravmag System. 06178_ &BINB #ARPRE PLIDCAD 06179_ P-60 Hacker heat short circuits Imp. Heat Sink. 06180_ Target Analyzer melted. 06180_ Unknown Power Core melted. 06180_ P-60 Hacker destroyed. Map ----- +----------------------------------------------------+ | ?????????????????????????????????????????????????? | | ?????????????????????????????????????????????????? | | ?????????????????????????????????????????????????? | | ??????????????????????????????????????#??????????? | | ?????????????????????????????????????? ??????????? | | ????????????????????????????????????"G"??????????? | | ???????????????????????????????????#" "###???????? | | ?????????????????????????????????+ +???????? | | ?????????????????????????????????# #???????? | | ?????????????????????????????????#" """ #???????? | | ?????????????????????????????????#" """ #???????? | | ?????????????????????????????????#" """ #???????? | | ?????????????????????????+???????#T #???????? | | ????????????????????????? ???????#" """ #???????? | | ????????????????????????? ???????#" """ #???????? | | ????????????????????????# ???????#" """ #???????? | | ????????????????????????# #??????# #???????? | | ????????????????????????# #??????# """ #???????? | | ????????????????????????# #??????# """ !#???????? | | ????????????????????????# #??????# """ ###?????? | | ????????????????????????# #??????# ""#?????# | | ????????????????????????# ######## """ F"#?????# | | ?????????????????###????# """ "#?????# | | ?????????????????# ] ??# """ ""#?????# | | ?????????????????# # ###?????# | | ?????????????????# """ /@ #??????## | | ?????????????????# """ # ############## #??????# | | ?????????????????# """??# #????????????# #??????## | | ?????????????????# ????#%#????????????# #???????# | | ?????????????????#??????# #???????###### #???????# | | ????????????????????????# #???????# # #???????# | | ????????????????????????# #???????# # #???????# | | ????????????????????????#;#???????# # #???????# | | ???????????????????????? ???????# # #??????## | | ???????????????????????? ???????# # #???? #? | | ???????????????????????? ???????# # #??"" ## | | ???????????????????????? ???????# # # """ # | | ????????????????????????###???????# %+ + """ # | | ??????????????????????????????????# # # # | | ????????????????????????????# ###### ######## | | ????????????????????????????+ % =% | | ????????????????????????????# ######+######### | | ?????????????????????????????????????? ??# % | | ?????????????????????????????????????# ## | | ?????????????????????????????????????# ## " | | ?????????????????????????????????????# ## " | | ?????????????????????????????????????# ## | | ?????????????????????????????????????# ## | | ?????????????????????????????????????######### | | ?????????????????????????????????????????????# | +----------------------------------------------------+ Best States ------------- Heat Dissipation 80 Energy Generation 18 Energy Capacity 310 Matter Stores 300 Matter Capacity 300 Sight Range 18 Terrain Scan Density 10 Armor Coverage 225 Evasion (%) 40 Target Analysis 5 Recoil Reduction 4 Energy Filtering 30 Particle Charging 15 Salvage Targeting 1 Item Schematics ----------------- None Robot Schematics ------------------ None Fabricated ------------ O-24 Administrator | x1 | -7/Factory | Preloaded Imp. Weapon Cycler | x2 | -7/Factory | Preloaded Alien Tech Used ----------------- None Achievements -------------- None Challenges ------------ None Game ------ Seed MicroFortressGreatsword Manual? 0 Play Time 00:57:32 Cumulative 241.5 hours Start 2022.05.11 @ 09:29:12 End 2022.05.11 @ 10:39:06 Sessions 1 Manual Loads 0 Difficulty Rogue Special Mode None Game No. 337 Rogue 334 Adventurer 0 Explorer 3 Win Type - Total 8 Types 8/0/0/0/0/0/0/0/0 Lore% 70 Gallery% 74 Achievement% 61 Wizard Run 0 Options --------- ASCII 1 Keyboard 1 Movement Vi Keybinds 0 Fullscreen 1 Font 18/SmallcapsGlow Map View 76x50 Tactical HUD 1 Map Filters NONE Filters NONE Steam 1 RUN: 8690c0ca-e455-452a-92d6-0572355cf40d